Workbook

Sheet Sheet1
A1: 附件
A2: 贵安新区综合行政执法支队2025年面向贵阳贵安公开选聘事业单位人员面试成绩、总成绩及进入体检环节人员名单
A3: 序号 | B3: 姓名 | C3: 准考证号 | D3: 单位 | E3: 报考岗位代码 | F3: 笔试成绩 | G3: 笔试成绩40% | H3: 面试成绩 | I3: 面试成绩60% | J3: 笔试、面试成绩 | K3: 综合排名 | L3: 是否进入体检
A4: 1 | B4: 杨永前 | C4: 202512010114 | D4: 贵安新区综合行政执法支队 | E4: 2025100101 | F4: 67.40 | G4: =F4*0.4 -> 26.96 | H4: 77.00 | I4: =H4*0.6 -> 46.20 | J4: =G4+I4 -> 73.16 | K4: =IF(E4=E3,K3+1,1) -> 1 | L4: 是
A5: 2 | B5: 宋耀 | C5: 202512010201 | D5: 贵安新区综合行政执法支队 | E5: 2025100103 | F5: 65.70 | G5: =F5*0.4 -> 26.28 | H5: 79.20 | I5: =H5*0.6 -> 47.52 | J5: 73.80 | K5: =IF(E5=E4,K4+1,1) -> 1 | L5: 是
A6: 3 | B6: 李涛 | C6: 202512010121 | D6: 贵安新区综合行政执法支队 | E6: 2025100104 | F6: 80.65 | G6: 32.26 | H6: 82.60 | I6: 49.56 | J6: 81.82 | K6: =IF(E6=E5,K5+1,1) -> 1 | L6: 是
A7: 4 | B7: 林文鹏 | C7: 202512010109 | D7: 贵安新区综合行政执法支队 | E7: 2025100104 | F7: 72.35 | G7: 28.94 | H7: 83.80 | I7: 50.28 | J7: 79.22 | K7: =IF(E7=E6,K6+1,1) -> 2 | L7: 是
A8: 5 | B8: 王炜 | C8: 202512010123 | D8: 贵安新区综合行政执法支队 | E8: 2025100105 | F8: 64.50 | G8: 25.80 | H8: 78.60 | I8: 47.16 | J8: 72.96 | K8: =IF(E8=E7,K7+1,1) -> 1 | L8: 是
A9: 6 | B9: 杨阳 | C9: 202512010112 | D9: 贵安新区综合行政执法支队 | E9: 2025100106 | F9: 68.45 | G9: =F9*0.4 -> 27.38 | H9: 81.00 | I9: =H9*0.6 -> 48.60 | J9: =G9+I9 -> 75.98 | K9: =IF(E10=E8,K8+1,1) -> 1 | L9: 是
A10: 7 | B10: 车方言 | C10: 202512010110 | D10: 贵安新区综合行政执法支队 | E10: 2025100106 | F10: 70.20 | G10: =F10*0.4 -> 28.08 | H10: 77.80 | I10: =H10*0.6 -> 46.68 | J10: =G10+I10 -> 74.76 | K10: =IF(E9=E10,K9+1,1) -> 2 | L10: 是
A11: 8 | B11: 张可红 | C11: 202512010115 | D11: 贵安新区综合行政执法支队 | E11: 2025100107 | F11: 73.65 | G11: 29.46 | H11: 72.20 | I11: 43.32 | J11: 72.78 | K11: 1 | L11: 是
A12: 9 | B12: 田新宇 | C12: 202512010108 | D12: 贵安新区综合行政执法支队 | E12: 2025100108 | F12: 78.10 | G12: 31.24 | H12: 80.20 | I12: 48.12 | J12: 79.36 | K12: 1 | L12: 是
A13: 10 | B13: 杨光成 | C13: 202512010116 | D13: 贵安新区综合行政执法支队 | E13: 2025100108 | F13: 73.45 | G13: 29.38 | H13: 79.00 | I13: 47.40 | J13: 76.78 | K13: 2 | L13: 是
